[Event "*** Titled Tuesday Blitz"]
[Site "Chess.com"]
[Date "2020.04.07"]
[Round "4"]
[White "champ2005"]
[Black "BogdanDeac"]
[Result "0-1"]
[WhiteElo "2974"]
[BlackElo "2618"]
[TimeControl "180+1"]
[EndTime "13:40:50 PDT"]
[Termination "BogdanDeac won by resignation"]

1. c4 {[%clk 0:03:00.5]} 1... Nf6 {[%clk 0:02:59.2]} 2. Nf3 {[%clk 0:03:00.7]}
2... e6 {[%clk 0:02:58.5]} 3. g3 {[%clk 0:03:01]} 3... d5 {[%clk 0:02:58]} 4. d4
{[%clk 0:03:01.5]} 4... dxc4 {[%clk 0:02:54.9]} 5. Bg2 {[%clk 0:02:59.8]} 5...
a6 {[%clk 0:02:55.4]} 6. O-O {[%clk 0:02:53.3]} 6... Nc6 {[%clk 0:02:55]} 7. e3
{[%clk 0:02:43.9]} 7... Rb8 {[%clk 0:02:54.5]} 8. Qe2 {[%clk 0:02:40.9]} 8... b5
{[%clk 0:02:53.6]} 9. b3 {[%clk 0:02:37.3]} 9... cxb3 {[%clk 0:02:53.6]} 10.
axb3 {[%clk 0:02:38.2]} 10... Be7 {[%clk 0:02:48.4]} 11. Bb2 {[%clk 0:02:38.4]}
11... O-O {[%clk 0:02:48.2]} 12. Nbd2 {[%clk 0:02:39.3]} 12... Bb7 {[%clk
0:02:47.1]} 13. Rfc1 {[%clk 0:02:39.6]} 13... Nb4 {[%clk 0:02:47]} 14. Bc3
{[%clk 0:02:37.8]} 14... Nfd5 {[%clk 0:02:44.3]} 15. Ne5 {[%clk 0:02:33.9]}
15... Nxc3 {[%clk 0:02:40.6]} 16. Rxc3 {[%clk 0:02:34.8]} 16... Bxg2 {[%clk
0:02:40]} 17. Kxg2 {[%clk 0:02:35.7]} 17... c5 {[%clk 0:02:35.9]} 18. dxc5
{[%clk 0:02:21.8]} 18... Rc8 {[%clk 0:02:31.9]} 19. Rd1 {[%clk 0:01:32.9]} 19...
Rxc5 {[%clk 0:02:29.7]} 20. Rxc5 {[%clk 0:01:32.2]} 20... Bxc5 {[%clk
0:02:28.3]} 21. Ne4 {[%clk 0:01:32.2]} 21... Qa8 {[%clk 0:02:20.1]} 22. Qf3
{[%clk 0:01:32.2]} 22... Be7 {[%clk 0:02:19.2]} 23. Rd7 {[%clk 0:01:31.3]} 23...
Nd5 {[%clk 0:02:15.7]} 24. Nc3 {[%clk 0:01:01.2]} 24... Nxc3 {[%clk 0:02:10.8]}
25. Qxa8 {[%clk 0:01:01.4]} 25... Rxa8 {[%clk 0:02:09.8]} 26. Rxe7 {[%clk
0:01:02.3]} 26... a5 {[%clk 0:01:55.3]} 27. Rxf7 {[%clk 0:01:02]} 27... a4
{[%clk 0:01:55.2]} 28. bxa4 {[%clk 0:01:01.4]} 28... bxa4 {[%clk 0:01:53.9]} 29.
Rc7 {[%clk 0:01:01.9]} 29... Nd5 {[%clk 0:01:30.3]} 30. Rc1 {[%clk 0:00:58.4]}
30... Nb4 {[%clk 0:01:21.3]} 31. Nc6 {[%clk 0:00:42.3]} 31... Nxc6 {[%clk
0:01:15.3]} 32. Rxc6 {[%clk 0:00:43.2]} 32... a3 {[%clk 0:01:10.2]} 33. Rc1
{[%clk 0:00:43.1]} 33... a2 {[%clk 0:01:10.3]} 34. Ra1 {[%clk 0:00:43.4]} 34...
Kf7 {[%clk 0:01:08.4]} 35. f4 {[%clk 0:00:36.3]} 35... e5 {[%clk 0:01:05.8]} 36.
Kf3 {[%clk 0:00:37.2]} 36... Ke6 {[%clk 0:01:05.5]} 37. Ke4 {[%clk 0:00:36.6]}
37... Ra4+ {[%clk 0:01:01.8]} 38. Kd3 {[%clk 0:00:36.9]} 38... exf4 {[%clk
0:00:58.4]} 39. gxf4 {[%clk 0:00:34.1]} 39... Kf5 {[%clk 0:00:57.2]} 40. h3
{[%clk 0:00:29.2]} 40... h6 {[%clk 0:00:53.9]} 41. Ke2 {[%clk 0:00:25.7]} 41...
Ke4 {[%clk 0:00:53.2]} 42. Kf2 {[%clk 0:00:25.1]} 42... Ra3 {[%clk 0:00:35.4]}
43. h4 {[%clk 0:00:24.8]} 43... h5 {[%clk 0:00:33.9]} 44. f5 {[%clk 0:00:21.6]}
44... Kxf5 {[%clk 0:00:32.7]} 45. Kf3 {[%clk 0:00:22.5]} 45... Ke5 {[%clk
0:00:32.6]} 46. Kf2 {[%clk 0:00:21.6]} 46... Ke4 {[%clk 0:00:32.9]} 0-1

[Event "*** Titled Tuesday Blitz"]
[Site "Chess.com"]
[Date "2020.04.07"]
[Round "4"]
[White "Shtembuliak"]
[Black "AliKa2810"]
[Result "1-0"]
[WhiteElo "2864"]
[BlackElo "2604"]
[TimeControl "180+1"]
[EndTime "13:40:51 PDT"]
[Termination "Shtembuliak won by resignation"]

1. c4 {[%clk 0:03:00.9]} 1... Nf6 {[%clk 0:03:00.1]} 2. Nc3 {[%clk 0:03:00.9]}
2... g6 {[%clk 0:03:01]} 3. e4 {[%clk 0:03:00.6]} 3... d6 {[%clk 0:03:01.4]} 4.
d4 {[%clk 0:03:01.1]} 4... Bg7 {[%clk 0:03:02.3]} 5. Nge2 {[%clk 0:03:01.6]}
5... O-O {[%clk 0:03:02.9]} 6. Ng3 {[%clk 0:03:01.9]} 6... e5 {[%clk 0:02:57.4]}
7. d5 {[%clk 0:03:02.1]} 7... Nbd7 {[%clk 0:02:53.3]} 8. h4 {[%clk 0:03:01.7]}
8... h5 {[%clk 0:02:51.3]} 9. Be2 {[%clk 0:02:57.7]} 9... a5 {[%clk 0:02:50]}
10. Bg5 {[%clk 0:02:56.8]} 10... Qe8 {[%clk 0:02:46.2]} 11. Qd2 {[%clk
0:02:55.8]} 11... Nc5 {[%clk 0:02:45.2]} 12. f3 {[%clk 0:02:56]} 12... Nh7
{[%clk 0:02:43.3]} 13. Be3 {[%clk 0:02:47]} 13... b6 {[%clk 0:02:42.5]} 14.
O-O-O {[%clk 0:02:45.5]} 14... a4 {[%clk 0:02:39.2]} 15. Kb1 {[%clk 0:02:45.5]}
15... a3 {[%clk 0:02:38.2]} 16. b3 {[%clk 0:02:44.7]} 16... f5 {[%clk
0:02:27.2]} 17. exf5 {[%clk 0:02:06.3]} 17... gxf5 {[%clk 0:02:26.9]} 18. Bg5
{[%clk 0:02:06.9]} 18... e4 {[%clk 0:02:23.6]} 19. f4 {[%clk 0:02:06.5]} 19...
Nf6 {[%clk 0:02:10.3]} 20. Bxf6 {[%clk 0:02:05.1]} 20... Bxf6 {[%clk 0:02:08.7]}
21. Nxh5 {[%clk 0:02:02.5]} 21... Bh8 {[%clk 0:02:04.9]} 22. Rh3 {[%clk
0:02:00.9]} 22... Kh7 {[%clk 0:02:00.7]} 23. Rg3 {[%clk 0:01:45.2]} 23... Bd7
{[%clk 0:02:00.6]} 24. Rg5 {[%clk 0:01:41.7]} 24... Qe7 {[%clk 0:01:48.3]} 25.
Qe3 {[%clk 0:01:39.5]} 25... Be8 {[%clk 0:01:37.7]} 26. Rh1 {[%clk 0:01:36.5]}
26... Bf7 {[%clk 0:01:35.1]} 27. Rxf5 {[%clk 0:01:30.8]} 27... Bg6 {[%clk
0:01:29.1]} 28. Rg5 {[%clk 0:01:24.3]} 28... Qf7 {[%clk 0:01:01.4]} 29. g4
{[%clk 0:01:14.8]} 29... Nd3 {[%clk 0:00:55.9]} 30. f5 {[%clk 0:01:12.7]} 30...
Bxh5 {[%clk 0:00:55.6]} 31. Rxh5+ {[%clk 0:01:13.2]} 31... Kg8 {[%clk
0:00:53.6]} 32. Qg5+ {[%clk 0:01:02.9]} 32... Qg7 {[%clk 0:00:48.2]} 33. Nxe4
{[%clk 0:01:00.1]} 33... Nf4 {[%clk 0:00:47.4]} 34. f6 {[%clk 0:00:50.9]} 34...
Qxg5 {[%clk 0:00:37.8]} 35. hxg5 {[%clk 0:00:46.1]} 35... Nxh5 {[%clk
0:00:33.3]} 36. gxh5 {[%clk 0:00:42.7]} 36... Rae8 {[%clk 0:00:33.2]} 37. Bd3
{[%clk 0:00:41.3]} 37... Re5 {[%clk 0:00:33]} 38. h6 {[%clk 0:00:38]} 38... Rfe8
{[%clk 0:00:32.9]} 39. Rh4 {[%clk 0:00:37.3]} 39... Rxg5 {[%clk 0:00:23.1]} 40.
Nxg5 {[%clk 0:00:36.1]} 40... Re1+ {[%clk 0:00:23.2]} 41. Kc2 {[%clk 0:00:35.5]}
41... Bxf6 {[%clk 0:00:23.9]} 42. h7+ {[%clk 0:00:35.7]} 42... Kf8 {[%clk
0:00:22.2]} 43. h8=Q+ {[%clk 0:00:35.5]} 43... Bxh8 {[%clk 0:00:22.1]} 44. Rxh8+
{[%clk 0:00:36.4]} 44... Kg7 {[%clk 0:00:22]} 45. Ra8 {[%clk 0:00:33.6]} 45...
Rg1 {[%clk 0:00:19.9]} 46. Ne6+ {[%clk 0:00:33.6]} 46... Kf6 {[%clk 0:00:19.6]}
47. Rxa3 {[%clk 0:00:33.6]} 47... Ke5 {[%clk 0:00:19.5]} 48. Ra7 {[%clk
0:00:33.6]} 48... c5 {[%clk 0:00:15.7]} 49. dxc6 {[%clk 0:00:32]} 49... Kxe6
{[%clk 0:00:15.8]} 50. c7 {[%clk 0:00:31.3]} 50... Rg8 {[%clk 0:00:13]} 51. Be4
{[%clk 0:00:29.2]} 1-0

[Event "*** Titled Tuesday Blitz"]
[Site "Chess.com"]
[Date "2020.04.07"]
[Round "4"]
[White "PowerThinking2650"]
[Black "rugbyclub"]
[Result "1-0"]
[WhiteElo "2352"]
[BlackElo "2111"]
[TimeControl "180+1"]
[EndTime "13:40:51 PDT"]
[Termination "PowerThinking2650 won on time"]

1. e4 {[%clk 0:03:00.9]} 1... c5 {[%clk 0:02:46.6]} 2. Nf3 {[%clk 0:02:59.2]}
2... e6 {[%clk 0:02:44.6]} 3. d4 {[%clk 0:02:59.1]} 3... cxd4 {[%clk 0:02:44]}
4. Nxd4 {[%clk 0:02:55.9]} 4... a6 {[%clk 0:02:44.3]} 5. Nc3 {[%clk 0:02:55.1]}
5... b5 {[%clk 0:02:43.4]} 6. Bd3 {[%clk 0:02:55]} 6... Qb6 {[%clk 0:02:41.5]}
7. Nf3 {[%clk 0:02:49.9]} 7... Bb7 {[%clk 0:02:40.5]} 8. O-O {[%clk 0:02:46.9]}
8... Nc6 {[%clk 0:02:39.9]} 9. e5 {[%clk 0:02:43.4]} 9... f5 {[%clk 0:02:34.4]}
10. Re1 {[%clk 0:02:32.9]} 10... Nh6 {[%clk 0:02:19]} 11. Bxh6 {[%clk
0:02:31.6]} 11... gxh6 {[%clk 0:02:18.7]} 12. Nh4 {[%clk 0:02:31.2]} 12... O-O-O
{[%clk 0:02:13]} 13. Nxf5 {[%clk 0:02:17.7]} 13... exf5 {[%clk 0:02:08.7]} 14.
Nd5 {[%clk 0:02:17.6]} 14... Qd4 {[%clk 0:01:53.3]} 15. Bxf5 {[%clk 0:02:15.4]}
15... Qxd1 {[%clk 0:01:50.5]} 16. Raxd1 {[%clk 0:02:16.3]} 16... Bc5 {[%clk
0:01:47.4]} 17. Nf6 {[%clk 0:02:09.4]} 17... Nd4 {[%clk 0:01:14]} 18. Bh3 {[%clk
0:01:57.5]} 18... Bc6 {[%clk 0:00:54.3]} 19. c3 {[%clk 0:01:51.5]} 19... Ne6
{[%clk 0:00:50.6]} 20. b4 {[%clk 0:01:43.2]} 20... Bb6 {[%clk 0:00:45.6]} 21.
Rd6 {[%clk 0:01:30.3]} 21... Bc7 {[%clk 0:00:37.2]} 22. Rxc6 {[%clk 0:01:24.7]}
22... dxc6 {[%clk 0:00:35.3]} 23. Bxe6+ {[%clk 0:01:24.6]} 23... Kb7 {[%clk
0:00:33.5]} 24. f4 {[%clk 0:01:24.6]} 24... Rd2 {[%clk 0:00:29]} 25. Bb3 {[%clk
0:01:14]} 25... Bb6+ {[%clk 0:00:19.7]} 26. Kh1 {[%clk 0:01:13.2]} 26... Rhd8
{[%clk 0:00:18.7]} 27. e6 {[%clk 0:01:04.2]} 27... Rb2 {[%clk 0:00:15.2]} 28. e7
{[%clk 0:01:02.8]} 28... Rdd2 {[%clk 0:00:13.4]} 29. e8=Q {[%clk 0:00:57.8]}
29... Rxg2 {[%clk 0:00:11.9]} 30. Re7+ {[%clk 0:00:52.8]} 30... Bc7 {[%clk
0:00:11.4]} 31. Rxc7+ {[%clk 0:00:49.4]} 31... Kxc7 {[%clk 0:00:07.4]} 32. Qd7+
{[%clk 0:00:48.7]} 32... Kb6 {[%clk 0:00:06.9]} 33. Qd8+ {[%clk 0:00:46.1]}
33... Kb7 {[%clk 0:00:06.7]} 34. Qe7+ {[%clk 0:00:43.7]} 34... Kb6 {[%clk
0:00:03.7]} 35. Nd5+ {[%clk 0:00:42.4]} 35... cxd5 {[%clk 0:00:02.8]} 36. Qd6+
{[%clk 0:00:42.3]} 1-0

[Event "*** Titled Tuesday Blitz"]
[Site "Chess.com"]
[Date "2020.04.07"]
[Round "4"]
[White "GMHess"]
[Black "Fandorine"]
[Result "0-1"]
[WhiteElo "2767"]
[BlackElo "2976"]
[TimeControl "180+1"]
[EndTime "13:40:52 PDT"]
[Termination "Fandorine won by resignation"]

1. b3 {[%clk 0:03:00.7]} 1... g6 {[%clk 0:02:53.7]} 2. Bb2 {[%clk 0:03:01.6]}
2... Nf6 {[%clk 0:02:53.7]} 3. e3 {[%clk 0:03:02.3]} 3... Bg7 {[%clk 0:02:53.7]}
4. d3 {[%clk 0:03:03.1]} 4... d6 {[%clk 0:02:50.5]} 5. Nd2 {[%clk 0:03:03.7]}
5... e5 {[%clk 0:02:50]} 6. Ne2 {[%clk 0:03:04]} 6... Nc6 {[%clk 0:02:48.7]} 7.
h3 {[%clk 0:03:04.6]} 7... Be6 {[%clk 0:02:47.8]} 8. g4 {[%clk 0:03:04.8]} 8...
Qd7 {[%clk 0:02:35.1]} 9. Bg2 {[%clk 0:03:04.1]} 9... h5 {[%clk 0:02:33.1]} 10.
g5 {[%clk 0:03:04.1]} 10... Nh7 {[%clk 0:02:33.3]} 11. h4 {[%clk 0:03:03.9]}
11... f6 {[%clk 0:02:31.8]} 12. gxf6 {[%clk 0:03:03.9]} 12... Nxf6 {[%clk
0:02:32.7]} 13. Nf3 {[%clk 0:02:54]} 13... O-O-O {[%clk 0:02:28.5]} 14. Ng5
{[%clk 0:02:53.9]} 14... Kb8 {[%clk 0:02:28.4]} 15. Qd2 {[%clk 0:02:48.6]} 15...
Rhf8 {[%clk 0:02:20.2]} 16. Nxe6 {[%clk 0:02:35.8]} 16... Qxe6 {[%clk
0:02:21.1]} 17. Ng3 {[%clk 0:02:34.3]} 17... d5 {[%clk 0:02:19.6]} 18. O-O-O
{[%clk 0:02:32.9]} 18... a6 {[%clk 0:02:15.1]} 19. Bh3 {[%clk 0:02:22.8]} 19...
Qe7 {[%clk 0:02:10.8]} 20. Rdg1 {[%clk 0:02:19.9]} 20... d4 {[%clk 0:02:07.3]}
21. Kb1 {[%clk 0:02:08.2]} 21... Bh6 {[%clk 0:02:03.3]} 22. Nf1 {[%clk
0:01:58.2]} 22... Qf7 {[%clk 0:01:55.7]} 23. Rh2 {[%clk 0:01:24.4]} 23... e4
{[%clk 0:01:53.4]} 24. Qe2 {[%clk 0:01:01.4]} 24... Ne5 {[%clk 0:01:27.6]} 25.
dxe4 {[%clk 0:00:44.8]} 25... Nxe4 {[%clk 0:01:10]} 26. f4 {[%clk 0:00:14.2]}
26... d3 {[%clk 0:01:07]} 27. cxd3 {[%clk 0:00:09.6]} 27... Nxd3 {[%clk
0:01:07.9]} 28. Bg2 {[%clk 0:00:03.6]} 28... Nxb2 {[%clk 0:00:49.2]} 29. Bxe4
{[%clk 0:00:03.8]} 29... Nd1 {[%clk 0:00:49.7]} 30. Qc2 {[%clk 0:00:03.6]} 30...
Bg7 {[%clk 0:00:47.2]} 31. Bxg6 {[%clk 0:00:03.1]} 31... Qf6 {[%clk 0:00:44.4]}
32. Kc1 {[%clk 0:00:03]} 32... Qd6 {[%clk 0:00:21]} 33. Nd2 {[%clk 0:00:03.1]}
33... Nxe3 {[%clk 0:00:18.5]} 34. Nc4 {[%clk 0:00:02.4]} 34... Qxf4 {[%clk
0:00:12.2]} 35. Nxe3 {[%clk 0:00:03.1]} 35... Qxe3+ {[%clk 0:00:13.1]} 0-1

[Event "*** Titled Tuesday Blitz"]
[Site "Chess.com"]
[Date "2020.04.07"]
[Round "4"]
[White "korbul"]
[Black "dretch"]
[Result "1/2-1/2"]
[WhiteElo "2574"]
[BlackElo "2779"]
[TimeControl "180+1"]
[EndTime "13:40:52 PDT"]
[Termination "Game drawn - insufficient material"]

1. d4 {[%clk 0:03:00.9]} 1... d5 {[%clk 0:02:55.6]} 2. c4 {[%clk 0:03:00.6]}
2... c6 {[%clk 0:02:55.4]} 3. Nf3 {[%clk 0:03:00]} 3... Nf6 {[%clk 0:02:55.1]}
4. e3 {[%clk 0:03:00.1]} 4... Bf5 {[%clk 0:02:42.6]} 5. Bd3 {[%clk 0:03:00]}
5... e6 {[%clk 0:02:41.2]} 6. Bxf5 {[%clk 0:02:59]} 6... exf5 {[%clk 0:02:41.3]}
7. O-O {[%clk 0:02:58.5]} 7... Nbd7 {[%clk 0:02:29]} 8. cxd5 {[%clk 0:02:58.1]}
8... Nxd5 {[%clk 0:02:28.4]} 9. Nc3 {[%clk 0:02:57]} 9... N7f6 {[%clk
0:02:23.6]} 10. Qd3 {[%clk 0:02:47.7]} 10... g6 {[%clk 0:02:19.9]} 11. Nxd5
{[%clk 0:02:45.8]} 11... Qxd5 {[%clk 0:02:18.4]} 12. Bd2 {[%clk 0:02:30.7]}
12... Bd6 {[%clk 0:02:17.3]} 13. Rac1 {[%clk 0:02:23.6]} 13... Qxa2 {[%clk
0:02:07.2]} 14. b3 {[%clk 0:02:09.8]} 14... Qa6 {[%clk 0:01:24]} 15. Qxa6 {[%clk
0:02:09.2]} 15... bxa6 {[%clk 0:01:24.9]} 16. Rxc6 {[%clk 0:02:09.1]} 16... Ne4
{[%clk 0:01:22.1]} 17. Ba5 {[%clk 0:02:02.2]} 17... O-O {[%clk 0:01:18.5]} 18.
Nd2 {[%clk 0:01:44.6]} 18... Rfc8 {[%clk 0:00:46.1]} 19. Rfc1 {[%clk 0:01:42.8]}
19... Rxc6 {[%clk 0:00:38.3]} 20. Rxc6 {[%clk 0:01:43.7]} 20... Nxd2 {[%clk
0:00:34]} 21. Bxd2 {[%clk 0:01:42.8]} 21... Bf8 {[%clk 0:00:32]} 22. Rxa6 {[%clk
0:01:42.2]} 22... Rb8 {[%clk 0:00:30.9]} 23. Rxa7 {[%clk 0:01:38.2]} 23... Rxb3
{[%clk 0:00:30.5]} 24. g3 {[%clk 0:01:38.4]} 24... Rb2 {[%clk 0:00:17.3]} 25.
Ba5 {[%clk 0:01:33.7]} 25... Ra2 {[%clk 0:00:15.6]} 26. Kg2 {[%clk 0:01:18.6]}
26... Kg7 {[%clk 0:00:12.8]} 27. d5 {[%clk 0:01:14.7]} 27... Bb4 {[%clk
0:00:10.3]} 28. Bb6 {[%clk 0:01:10.3]} 28... Rxa7 {[%clk 0:00:08.6]} 29. Bxa7
{[%clk 0:01:11.2]} 29... Kf6 {[%clk 0:00:08.6]} 30. Bd4+ {[%clk 0:01:10.6]}
30... Ke7 {[%clk 0:00:08.4]} 31. Kf3 {[%clk 0:01:10.5]} 31... Kd6 {[%clk
0:00:07.2]} 32. e4 {[%clk 0:01:10.9]} 32... fxe4+ {[%clk 0:00:08.1]} 33. Kxe4
{[%clk 0:01:11.2]} 33... f5+ {[%clk 0:00:08.8]} 34. Kf4 {[%clk 0:01:11.3]} 34...
Kxd5 {[%clk 0:00:05.3]} 35. Be3 {[%clk 0:01:07.5]} 35... Be7 {[%clk 0:00:04.9]}
36. g4 {[%clk 0:01:05]} 36... fxg4 {[%clk 0:00:04.9]} 37. Kxg4 {[%clk
0:01:05.1]} 37... Ke6 {[%clk 0:00:05.4]} 38. Bg5 {[%clk 0:00:57]} 38... h5+
{[%clk 0:00:04.8]} 39. Kh4 {[%clk 0:00:56]} 39... Bd6 {[%clk 0:00:05.7]} 40. h3
{[%clk 0:00:55]} 40... Kf5 {[%clk 0:00:05.4]} 41. Be3 {[%clk 0:00:53.8]} 41...
Bc7 {[%clk 0:00:05.2]} 42. f3 {[%clk 0:00:50.1]} 42... Bb8 {[%clk 0:00:03.9]}
43. Bh6 {[%clk 0:00:49.2]} 43... Bc7 {[%clk 0:00:03.9]} 44. Bd2 {[%clk 0:00:49]}
44... Bd6 {[%clk 0:00:03.5]} 45. Bh6 {[%clk 0:00:48.2]} 45... Be5 {[%clk
0:00:03.5]} 46. Bd2 {[%clk 0:00:47.5]} 46... Bh2 {[%clk 0:00:03.3]} 47. Be3
{[%clk 0:00:47.3]} 47... Bd6 {[%clk 0:00:03.1]} 48. Bh6 {[%clk 0:00:47.1]} 48...
Bb4 {[%clk 0:00:03.2]} 49. Kg3 {[%clk 0:00:45.9]} 49... g5 {[%clk 0:00:02.9]}
50. Bg7 {[%clk 0:00:40.9]} 50... Bd6+ {[%clk 0:00:02.5]} 51. Kg2 {[%clk
0:00:40.4]} 51... g4 {[%clk 0:00:02.8]} 52. fxg4+ {[%clk 0:00:39.8]} 52... hxg4
{[%clk 0:00:03.7]} 53. hxg4+ {[%clk 0:00:40.1]} 53... Kxg4 {[%clk 0:00:04.6]}
1/2-1/2

[Event "*** Titled Tuesday Blitz"]
[Site "Chess.com"]
[Date "2020.04.07"]
[Round "4"]
[White "Jeffinho023"]
[Black "SahajGrover"]
[Result "0-1"]
[WhiteElo "2444"]
[BlackElo "2657"]
[TimeControl "180+1"]
[EndTime "13:40:52 PDT"]
[Termination "SahajGrover won on time"]

1. d4 {[%clk 0:03:00.9]} 1... Nf6 {[%clk 0:02:58.9]} 2. Nf3 {[%clk 0:03:00.8]}
2... g6 {[%clk 0:02:59]} 3. g3 {[%clk 0:03:00.9]} 3... Bg7 {[%clk 0:02:59.5]} 4.
Bg2 {[%clk 0:03:01.5]} 4... O-O {[%clk 0:03:00.2]} 5. O-O {[%clk 0:03:02]} 5...
d5 {[%clk 0:03:00.9]} 6. c3 {[%clk 0:03:01.7]} 6... Bf5 {[%clk 0:02:57.6]} 7.
Bf4 {[%clk 0:03:00.6]} 7... c5 {[%clk 0:02:55.3]} 8. dxc5 {[%clk 0:02:39.9]}
8... Nc6 {[%clk 0:02:54.2]} 9. Nbd2 {[%clk 0:02:27.4]} 9... Nd7 {[%clk 0:02:39]}
10. Nb3 {[%clk 0:02:23]} 10... e5 {[%clk 0:02:28.2]} 11. Bg5 {[%clk 0:02:18.8]}
11... Nf6 {[%clk 0:02:25.8]} 12. Nfd2 {[%clk 0:02:07.5]} 12... e4 {[%clk
0:01:57.7]} 13. Nd4 {[%clk 0:01:59.7]} 13... Bd7 {[%clk 0:01:57.4]} 14. N2b3
{[%clk 0:01:54.4]} 14... h6 {[%clk 0:01:55.2]} 15. Bxf6 {[%clk 0:01:49.2]} 15...
Qxf6 {[%clk 0:01:55.5]} 16. Nxc6 {[%clk 0:01:44.1]} 16... bxc6 {[%clk
0:01:55.4]} 17. e3 {[%clk 0:01:37.5]} 17... Qe7 {[%clk 0:01:51.4]} 18. Qc2
{[%clk 0:01:28.8]} 18... a5 {[%clk 0:01:45.1]} 19. a4 {[%clk 0:01:06.6]} 19...
Rfb8 {[%clk 0:01:43.7]} 20. Rab1 {[%clk 0:01:04.1]} 20... h5 {[%clk 0:01:40.6]}
21. Rfd1 {[%clk 0:00:51.6]} 21... h4 {[%clk 0:00:59.6]} 22. c4 {[%clk
0:00:50.8]} 22... dxc4 {[%clk 0:00:59.9]} 23. Nd2 {[%clk 0:00:42.2]} 23... c3
{[%clk 0:00:56.9]} 24. bxc3 {[%clk 0:00:38.3]} 24... hxg3 {[%clk 0:00:48.4]} 25.
hxg3 {[%clk 0:00:38]} 25... Rxb1 {[%clk 0:00:46.8]} 26. Rxb1 {[%clk 0:00:38.9]}
26... f5 {[%clk 0:00:42.1]} 27. Rb7 {[%clk 0:00:36.2]} 27... Rd8 {[%clk
0:00:38.3]} 28. Nc4 {[%clk 0:00:34.2]} 28... Qxc5 {[%clk 0:00:36]} 29. Qb3
{[%clk 0:00:18.7]} 29... Be6 {[%clk 0:00:31.3]} 30. Bf1 {[%clk 0:00:19.2]} 30...
Rd3 {[%clk 0:00:20.2]} 31. Rb8+ {[%clk 0:00:16.1]} 31... Kh7 {[%clk 0:00:19.6]}
32. Bxd3 {[%clk 0:00:07.4]} 32... exd3 {[%clk 0:00:20.5]} 33. Qb6 {[%clk
0:00:06.5]} 33... Qxc4 {[%clk 0:00:18.1]} 34. Rd8 {[%clk 0:00:05.6]} 34... Qe4
{[%clk 0:00:12.3]} 0-1

[Event "*** Titled Tuesday Blitz"]
[Site "Chess.com"]
[Date "2020.04.07"]
[Round "4"]
[White "picturesquecheck"]
[Black "kleopl"]
[Result "0-1"]
[WhiteElo "2136"]
[BlackElo "2400"]
[TimeControl "180+1"]
[EndTime "13:40:53 PDT"]
[Termination "kleopl won by resignation"]

1. e4 {[%clk 0:03:00.9]} 1... d5 {[%clk 0:02:57.9]} 2. exd5 {[%clk 0:02:59.8]}
2... Qxd5 {[%clk 0:02:58.8]} 3. Nc3 {[%clk 0:02:59]} 3... Qd6 {[%clk 0:02:57.9]}
4. d4 {[%clk 0:02:55.2]} 4... Nf6 {[%clk 0:02:57.9]} 5. Bc4 {[%clk 0:02:55.2]}
5... a6 {[%clk 0:02:56.2]} 6. Nge2 {[%clk 0:02:55.4]} 6... b5 {[%clk 0:02:55.2]}
7. Bb3 {[%clk 0:02:51.6]} 7... Bb7 {[%clk 0:02:54.2]} 8. Bf4 {[%clk 0:02:51.1]}
8... Qd7 {[%clk 0:02:54.1]} 9. O-O {[%clk 0:02:47.9]} 9... e6 {[%clk 0:02:54.4]}
10. a3 {[%clk 0:02:21.5]} 10... c5 {[%clk 0:02:49.1]} 11. dxc5 {[%clk
0:02:14.9]} 11... Bxc5 {[%clk 0:02:50]} 12. Ng3 {[%clk 0:02:02.9]} 12... Qc6
{[%clk 0:02:44]} 13. Qf3 {[%clk 0:01:40.4]} 13... Qxf3 {[%clk 0:02:43.4]} 14.
gxf3 {[%clk 0:01:40.6]} 14... Bxf3 {[%clk 0:02:43.8]} 15. Rfe1 {[%clk
0:01:29.6]} 15... O-O {[%clk 0:02:40.9]} 16. Nce4 {[%clk 0:01:24.4]} 16... Nxe4
{[%clk 0:02:39.3]} 17. Nxe4 {[%clk 0:01:24.9]} 17... Bb6 {[%clk 0:02:31.9]} 18.
Ng5 {[%clk 0:01:23.1]} 18... Bg4 {[%clk 0:02:25.3]} 19. h3 {[%clk 0:01:08.3]}
19... Bf5 {[%clk 0:02:23.5]} 20. h4 {[%clk 0:01:08.7]} 20... Nc6 {[%clk
0:02:17.7]} 21. Rad1 {[%clk 0:01:06.9]} 21... Nd4 {[%clk 0:02:15.3]} 22. Be3
{[%clk 0:01:00.8]} 22... Rfd8 {[%clk 0:02:00.4]} 23. Bxd4 {[%clk 0:00:59.2]}
23... Rxd4 {[%clk 0:01:53.4]} 24. Rxd4 {[%clk 0:00:56.2]} 24... Bxd4 {[%clk
0:01:54.3]} 25. c3 {[%clk 0:00:56.7]} 25... Bf6 {[%clk 0:01:54]} 26. Kg2 {[%clk
0:00:48.9]} 26... Rd8 {[%clk 0:01:50.8]} 27. Rd1 {[%clk 0:00:48.6]} 27... Rxd1
{[%clk 0:01:48.5]} 28. Bxd1 {[%clk 0:00:49.5]} 28... h6 {[%clk 0:01:46.5]} 29.
Nf3 {[%clk 0:00:49.4]} 29... Be4 {[%clk 0:01:44.8]} 30. Kg3 {[%clk 0:00:48.7]}
30... Kf8 {[%clk 0:01:43.1]} 31. Nd2 {[%clk 0:00:45.3]} 31... Bd5 {[%clk
0:01:41.2]} 32. Bf3 {[%clk 0:00:44.2]} 32... Bxf3 {[%clk 0:01:38.7]} 33. Nxf3
{[%clk 0:00:44.1]} 33... Ke7 {[%clk 0:01:38.8]} 34. h5 {[%clk 0:00:44.1]} 34...
Kd6 {[%clk 0:01:37.3]} 35. Kf4 {[%clk 0:00:44]} 35... Kd5 {[%clk 0:01:37.1]} 36.
Ke3 {[%clk 0:00:39.5]} 36... Kc4 {[%clk 0:01:35.9]} 37. Nd2+ {[%clk 0:00:38.5]}
37... Kd5 {[%clk 0:01:33.2]} 38. Kd3 {[%clk 0:00:38.5]} 38... Bg5 {[%clk
0:01:30.3]} 39. Ne4 {[%clk 0:00:37.6]} 39... Bf4 {[%clk 0:01:25.9]} 40. b3
{[%clk 0:00:34.7]} 40... f5 {[%clk 0:01:24]} 41. c4+ {[%clk 0:00:34.5]} 41...
bxc4+ {[%clk 0:01:24]} 42. bxc4+ {[%clk 0:00:35.4]} 42... Kc6 {[%clk 0:01:24]}
43. Nc3 {[%clk 0:00:35]} 43... Be5 {[%clk 0:01:22.7]} 44. Ne2 {[%clk 0:00:34.6]}
44... Kc5 {[%clk 0:01:20.4]} 45. f4 {[%clk 0:00:29.4]} 45... Bb2 {[%clk
0:01:19.7]} 46. a4 {[%clk 0:00:28.4]} 46... Kb4 {[%clk 0:01:19]} 47. Kc2 {[%clk
0:00:20.5]} 47... Bf6 {[%clk 0:01:17]} 48. Kd3 {[%clk 0:00:20.5]} 48... Kxa4
{[%clk 0:01:16.9]} 49. Nc1 {[%clk 0:00:20.2]} 49... Kb4 {[%clk 0:01:15.1]} 50.
Na2+ {[%clk 0:00:19.9]} 50... Kc5 {[%clk 0:01:15.2]} 51. Nc1 {[%clk 0:00:19.3]}
51... a5 {[%clk 0:01:13.8]} 52. Nb3+ {[%clk 0:00:19.4]} 52... Kb4 {[%clk
0:01:14.1]} 53. Nd4 {[%clk 0:00:18.3]} 53... Bxd4 {[%clk 0:01:09.8]} 54. Kxd4
{[%clk 0:00:18.3]} 54... a4 {[%clk 0:01:10.1]} 55. c5 {[%clk 0:00:18.8]} 55...
a3 {[%clk 0:01:10.4]} 56. c6 {[%clk 0:00:18.7]} 56... a2 {[%clk 0:01:10.6]} 57.
c7 {[%clk 0:00:18.5]} 0-1